bitfinex-derivatives/quotes_SOLF0:USTF0_20250416
["timestamp","ask_amount","ask_price","bid_price","bid_amount"]
[1744781997558,6.80975569,125.44,125.4,20.2922]
[1744781997970,7.9734,125.43,125.4,20.2922]
[1744781998666,0.05985125,125.43,125.4,28.31988026]
[1744781998862,0.05985125,125.43,125.4,20.34498026]
[1744781999065,6.86960694,125.43,125.4,20.34498026]
[1744781999264,14.84280694,125.43,125.4,20.34498026]
[1744781999767,0.05985125,125.43,125.4,28.31998026]
[1744782000565,0.05985125,125.43,125.41,6.80975569]
[1744782000868,6.80975569,125.5,125.42,6.80975569]
[1744782001062,6.80975569,125.5,125.45,6.80975569]
[1744782001256,7.9696,125.49,125.45,14.78155569]
[1744782001764,0.05942435,125.48,125.46,0.05377991]
[1744782001970,0.05942435,125.48,125.46,8.02467991]
[1744782002168,0.05942435,125.48,125.46,0.05377991]
[1744782003267,8.02972435,125.48,125.46,0.05377991]
[1744782004769,0.05942435,125.48,125.46,8.02497991]
[1744782005068,0.05942435,125.48,125.46,0.05377991]
[1744782005570,0.05942435,125.48,125.46,8.02497991]
[1744782006269,0.05942435,125.48,125.46,0.05377991]
[1744782007268,8.02952435,125.48,125.46,0.05377991]
[1744782007770,0.05942435,125.48,125.46,0.05377991]
[1744782007970,7.9706,125.47,125.46,0.05377991]
[1744782008570,8.02962435,125.48,125.46,0.05377991]
[1744782008767,0.05942435,125.48,125.46,0.05377991]
[1744782008967,10.64254656,125.47,125.41,42.5]
[1744782009167,15.68684656,125.47,125.4,20.2922]
[1744782009663,7.9729,125.44,125.4,20.2922]
[1744782009871,15.68684656,125.47,125.4,20.2922]
[1744782010070,7.9726,125.44,125.4,28.267]
[1744782010272,7.9726,125.44,125.42,0.05940568]
[1744782013376,8.03139896,125.45,125.42,0.05940568]
[1744782013970,7.9726,125.44,125.42,0.05940568]
[1744782014467,0.05919896,125.45,125.42,0.05940568]
[1744782015571,10.70174552,125.45,125.42,0.05940568]
[1744782015778,7.9732,125.43,125.42,0.05940568]
[1744782017171,7.9729,125.44,125.42,0.05940568]
[1744782018375,0.05919896,125.45,125.42,0.05940568]
[1744782019975,10.70174552,125.45,125.42,0.05940568]
[1744782020173,7.9744,125.41,125.4,20.2922]
[1744782020376,10.64254656,125.45,125.4,20.2922]
[1744782020679,7.972,125.45,125.4,28.2669]
[1744782020878,15.68684656,125.47,125.4,20.2922]
[1744782021288,0.05209846,125.45,125.42,0.05942216]
[1744782022182,8.02459846,125.45,125.42,0.05942216]
[1744782023079,7.9726,125.44,125.42,0.05942216]
[1744782027081,7.9732,125.43,125.42,0.05942216]
[1744782027385,14.78996108,125.43,125.42,0.05942216]
[1744782029190,7.9728,125.44,125.42,0.05942216]
[1744782032995,14.84095954,125.45,125.42,0.05942216]
[1744782033190,8.02419846,125.45,125.42,0.05942216]
[1744782033397,0.05209846,125.45,125.42,0.05942216]
[1744782033596,8.02409846,125.45,125.42,0.05942216]
[1744782034302,8.02409846,125.45,125.42,8.03322216]
[1744782034502,0.05209846,125.45,125.42,8.03322216]
[1744782034800,0.05209846,125.45,125.42,6.87618324]
[1744782035103,7.9702,125.48,125.44,6.81676108]
[1744782035403,6.81676108,125.49,125.44,6.81676108]
[1744782035602,7.9707,125.47,125.44,6.81676108]
[1744782036307,8.02955809,125.47,125.44,6.86987301]
[1744782036804,0.05885809,125.47,125.44,14.84237301]
[1744782040103,0.05885809,125.47,125.45,7.9719]
[1744782040807,0.05885809,125.47,125.46,6.81676108]
[1744782043008,0.05885809,125.47,125.45,7.9719]
[1744782043206,0.05885809,125.47,125.46,6.81676108]
[1744782043904,0.05885809,125.47,125.45,7.9719]
[1744782044099,0.05885809,125.47,125.44,6.86987301]
[1744782045012,0.05885809,125.47,125.46,6.81676108]
[1744782045607,6.81676108,125.51,125.46,6.81676108]
[1744782046109,7.9665,125.54,125.5,14.78546108]
[1744782046709,7.9668,125.53,125.5,6.81676108]
[1744782046908,0.05160292,125.53,125.51,0.05447039]
[1744782047812,7.9698,125.49,125.43,6.81676108]
[1744782048007,6.81676108,125.48,125.43,6.81676108]
[1744782048310,6.81676108,125.48,125.44,7.9722]
[1744782048607,14.78696108,125.48,125.44,7.9722]
[1744782048811,0.06114792,125.47,125.45,14.84206619]
[1744782049611,0.06114792,125.47,125.46,14.78806108]
[1744782049812,0.06114792,125.47,125.45,0.05390511]
[1744782050810,8.03224792,125.47,125.45,0.05390511]
[1744782051012,0.06114792,125.47,125.45,0.05390511]
[1744782051207,10.70719597,125.47,125.45,0.05390511]
[1744782051412,10.70719597,125.47,125.4,20.2922]
[1744782051711,4.8251,125.46,125.4,20.2922]
[1744782052009,7.9727,125.44,125.4,28.267]
[1744782052513,0.05989223,125.43,125.41,0.05708017]
[1744782055111,8.03319223,125.43,125.41,0.05708017]
[1744782055513,0.05989223,125.43,125.41,0.05708017]
[1744782056605,8.03339223,125.43,125.41,0.05708017]
[1744782058218,0.05989223,125.43,125.41,0.05708017]
[1744782058723,8.03339223,125.43,125.41,0.05708017]
[1744782059622,7.9738,125.42,125.41,0.05708017]
[1744782059814,10.70594028,125.43,125.4,20.2922]
[1744782060317,53.00594028,125.43,125.4,20.2922]
[1744782061023,53.00594028,125.43,125.4,20.34267891]
[1744782061727,42.35989223,125.43,125.4,20.34267891]
[1744782062019,0.05989223,125.43,125.4,20.34267891]
[1744782062326,0.05989223,125.43,125.4,30.98872696]
[1744782062517,42.3,125.47,125.4,30.98872696]
[1744782062919,7.9718,125.46,125.41,7.9741]
[1744782063122,52.94604805,125.47,125.4,20.2922]
[1744782063529,8.03281073,125.45,125.42,0.05675568]
[1744782064024,0.06051073,125.45,125.42,8.03055568]
[1744782064224,0.06051073,125.45,125.42,0.05675568]
[1744782065126,8.03261073,125.45,125.42,0.05675568]
[1744782065816,7.9728,125.44,125.42,0.05675568]
[1744782066018,0.06051073,125.45,125.42,0.05675568]
[1744782066225,0.06051073,125.45,125.4,20.2922]
[1744782066226,10.64604805,125.43,125.4,20.2922]
[1744782067429,10.64604805,125.43,125.4,20.34935314]
[1744782068521,10.64604805,125.41,125.4,16.55275314]
[1744782068726,10.64604805,125.43,125.4,16.55275314]
[1744782069025,7.9744,125.41,125.4,16.55275314]
[1744782070428,0.05497087,125.42,125.4,16.55275314]
[1744782072726,7.9744,125.41,125.4,16.55275314]
[1744782079337,18.62044805,125.41,125.4,16.55275314]
[1744782081540,18.62044805,125.41,125.4,16.15220953]
[1744782081840,7.9783,125.35,125.32,2.36]
[1744782082139,10.64604805,125.38,125.32,2.36]
[1744782082432,7.9771,125.37,125.32,2.36]
[1744782082739,10.64604805,125.4,125.32,2.36]
[1744782083040,42.3,125.42,125.35,10.64604805]
[1744782083238,42.3,125.42,125.36,2.3847]
[1744782084144,7.9754,125.4,125.36,2.3847]
[1744782084337,8.03017218,125.4,125.38,0.05663506]
[1744782084739,7.9757,125.39,125.38,0.05663506]
[1744782090346,8.03017218,125.4,125.38,0.05663506]
[1744782090540,0.05477218,125.4,125.38,0.05663506]
[1744782091047,7.9757,125.39,125.38,0.05663506]
[1744782091345,0.05477218,125.4,125.38,0.05663506]
[1744782092046,0.05477218,125.4,125.39,7.9757]
[1744782092445,52.82604805,125.46,125.38,0.05663506]
[1744782092646,52.82604805,125.46,125.38,7.9758]
[1744782093447,42.18,125.46,125.38,10.64604805]
[1744782093646,0.05343044,125.43,125.41,0.05755799]
[1744782094847,0.05343044,125.43,125.42,7.9738]
[1744782095047,0.05343044,125.43,125.41,0.05755799]
[1744782095549,0.05343044,125.43,125.41,8.03145799]
[1744782096644,0.05343044,125.43,125.41,0.05755799]
[1744782097244,0.05343044,125.43,125.41,8.03185799]
[1744782097448,0.05343044,125.43,125.41,0.05755799]
[1744782099354,8.02673044,125.43,125.41,0.05755799]
[1744782099553,0.05343044,125.43,125.41,0.05755799]
[1744782100153,7.9738,125.42,125.41,0.05755799]
[1744782102757,8.02683044,125.43,125.41,0.05755799]
[1744782103057,0.05343044,125.43,125.41,0.05755799]
[1744782103457,7.9738,125.42,125.41,0.05755799]
[1744782104058,10.69947849,125.43,125.35,362.0]
[1744782104261,10.64604805,125.41,125.33,2.416]
[1744782104461,7.9775,125.37,125.32,10.64604805]
[1744782105057,7.9775,125.37,125.33,7.9792]
[1744782105259,0.05896752,125.36,125.33,8.03949972]
[1744782106158,8.03666752,125.36,125.33,8.03949972]
[1744782106361,8.03666752,125.36,125.33,0.06029972]
[1744782107150,0.05896752,125.36,125.34,7.9788]
[1744782107449,0.05896752,125.36,125.33,0.06029972]
[1744782107861,0.05896752,125.36,125.33,8.03939972]
[1744782108054,0.05896752,125.36,125.33,0.06029972]
[1744782109161,7.9787,125.35,125.33,0.06029972]
[1744782111754,0.05896752,125.36,125.33,0.06029972]
[1744782111960,7.9789,125.34,125.33,0.06029972]
[1744782112161,0.05896752,125.36,125.33,0.06029972]
[1744782112559,7.9789,125.34,125.33,0.06029972]
[1744782113362,7.9786,125.35,125.33,0.06029972]
[1744782114761,7.9789,125.34,125.33,0.06029972]
[1744782116465,7.9789,125.34,125.33,0.00795548]
[1744782116964,52.68604805,125.35,125.27,2.2937]
[1744782117260,2.3989,125.34,125.27,2.2937]
[1744782117663,7.9813,125.31,125.27,2.2937]
[1744782118054,2.3989,125.34,125.27,2.2937]
[1744782118263,0.0559206,125.3,125.28,0.05973612]
[1744782121266,8.0373206,125.3,125.28,0.05973612]
[1744782122471,0.0559206,125.3,125.28,0.05973612]
[1744782122762,0.0559206,125.3,125.28,8.04213612]
[1744782123260,0.0559206,125.3,125.28,0.05973612]
[1744782123766,0.0559206,125.3,125.29,18.62814805]
[1744782123967,42.04,125.35,125.29,10.64604805]
[1744782124158,42.04,125.35,125.28,2.4836]
[1744782124466,52.68604805,125.35,125.27,20.92294805]
[1744782124662,52.68604805,125.35,125.27,12.93974805]
[1744782124968,0.05498185,125.32,125.3,0.0593584]
[1744782125171,8.03518185,125.32,125.3,0.0593584]
[1744782125372,0.05498185,125.32,125.3,0.0593584]
[1744782126266,0.05498185,125.32,125.31,7.9808]
[1744782127371,0.05498185,125.32,125.31,18.62684805]
[1744782127572,2.4452,125.38,125.33,7.979]
[1744782127763,2.4452,125.38,125.31,10.64604805]
[1744782128568,7.9773,125.37,125.33,7.9791]
[1744782128767,0.06106232,125.36,125.33,8.02947001]
[1744782128968,0.06106232,125.36,125.33,0.05037001]
[1744782129165,0.06106232,125.36,125.33,8.02977001]
[1744782129672,42.06,125.45,125.35,10.64604805]
[1744782129869,44.3526,125.45,125.37,10.64604805]
[1744782130174,52.3247,125.45,125.37,10.64604805]
[1744782130375,44.3526,125.45,125.37,10.64604805]
[1744782130671,54.99864805,125.45,125.35,13.10884805]
[1744782131071,0.05405361,125.42,125.4,0.05471783]
[1744782131669,0.05405361,125.42,125.4,8.02951783]
[1744782131869,0.05405361,125.42,125.4,0.05471783]
[1744782133580,8.02795361,125.42,125.4,0.05471783]
[1744782133777,0.05405361,125.42,125.4,0.05471783]
[1744782134179,8.02825361,125.42,125.4,0.05471783]
[1744782135177,7.9744,125.41,125.4,0.05471783]
[1744782136978,7.9757,125.39,125.35,18.62414805]
[1744782137184,0.05405361,125.42,125.33,10.64604805]
[1744782137383,2.5178,125.42,125.33,10.64604805]
[1744782137584,10.64604805,125.41,125.34,42.06]
[1744782137786,10.64604805,125.41,125.31,587.62534805]
[1744782137980,10.64604805,125.39,125.31,587.62534805]
[1744782138185,7.9775,125.37,125.31,595.60554805]
[1744782138386,8.03138838,125.37,125.35,0.05239092]
[1744782140888,0.05388838,125.37,125.35,0.05239092]
[1744782143289,2.4934,125.43,125.35,10.69843897]
[1744782143689,7.9754,125.4,125.36,7.9772]
[1744782144592,0.06076389,125.39,125.37,0.05815648]
[1744782146186,0.06076389,125.39,125.37,8.03505648]
[1744782146391,0.06076389,125.39,125.37,0.05815648]
[1744782146896,0.06076389,125.39,125.37,8.03475648]
[1744782147388,0.06076389,125.39,125.37,0.05815648]
[1744782147989,8.03646389,125.39,125.37,0.05815648]
[1744782148194,0.06076389,125.39,125.37,0.05815648]
[1744782148595,7.9763,125.38,125.37,0.05815648]
[1744782148893,0.06076389,125.39,125.37,0.05815648]
[1744782149195,8.03666389,125.39,125.37,0.05815648]
[1744782151295,7.9763,125.38,125.37,0.05815648]
[1744782152095,8.03676389,125.39,125.37,0.05815648]
[1744782154295,0.06076389,125.39,125.37,0.05815648]
[1744782154897,8.03646389,125.39,125.37,0.05815648]
[1744782159898,7.9763,125.38,125.37,0.05815648]
[1744782160200,2.4882,125.38,125.31,13.14534805]
[1744782160396,7.9779,125.36,125.32,7.9798]
[1744782160596,7.9779,125.36,125.31,13.14534805]
[1744782160999,7.9779,125.36,125.32,7.9797]
[1744782161301,0.0551394,125.35,125.32,8.03742136]
[1744782161695,8.0337394,125.35,125.32,8.03742136]
[1744782161892,0.0551394,125.35,125.32,0.05772136]
[1744782162500,7.979,125.34,125.32,0.05772136]
[1744782162894,0.0551394,125.35,125.32,0.05772136]
[1744782163198,0.0551394,125.35,125.32,8.03772136]
[1744782163996,0.0551394,125.35,125.32,0.05772136]
[1744782164199,7.9789,125.34,125.32,0.05772136]
[1744782164401,0.0551394,125.35,125.32,0.05772136]
[1744782165000,8.0337394,125.35,125.32,0.05772136]
[1744782165493,0.0551394,125.35,125.32,0.05772136]
[1744782165699,0.0551394,125.35,125.33,10.64604805]
[1744782166302,0.0551394,125.35,125.34,7.9789]
[1744782169405,7.9761,125.39,125.35,7.9778]
[1744782169597,7.9761,125.39,125.35,10.64604805]
[1744782169801,7.0389,125.42,125.35,10.64604805]
[1744782170105,7.9762,125.39,125.35,18.62394805]
[1744782170403,7.0389,125.42,125.35,10.64604805]
[1744782170804,0.0552467,125.38,125.37,7.9769]
[1744782171107,7.0389,125.42,125.36,0.05345503]
[1744782171405,0.0520748,125.39,125.36,8.03075503]
[1744782171703,0.0520748,125.39,125.36,0.05345503]
[1744782171906,0.0520748,125.39,125.37,10.64604805]
[1744782172505,7.9735,125.43,125.38,7.9763]
[1744782172807,7.9735,125.43,125.39,10.64604805]
[1744782173602,0.05736841,125.42,125.39,10.64604805]
[1744782173808,0.05736841,125.42,125.4,0.05579684]
[1744782179114,0.05736841,125.42,125.4,8.03059684]
[1744782179609,0.05736841,125.42,125.41,7.9744]
[1744782180914,0.05736841,125.42,125.4,0.05579684]
[1744782182614,0.05736841,125.42,125.41,7.9744]
[1744782183118,0.05736841,125.42,125.41,14.78890823]
[1744782183319,0.05736841,125.42,125.4,14.84520507]
[1744782183620,0.05736841,125.42,125.4,0.05579684]
[1744782184626,7.9744,125.41,125.4,0.05579684]
[1744782185323,8.03146841,125.42,125.4,0.05579684]
[1744782185517,0.05736841,125.42,125.4,0.05579684]
[1744782187328,8.03116841,125.42,125.4,0.05579684]
[1744782187830,0.05736841,125.42,125.4,0.05579684]
[1744782189232,7.9744,125.41,125.4,0.05579684]
[1744782189733,7.9758,125.39,125.35,41.88]
[1744782190336,7.9754,125.4,125.35,41.88]
[1744782190636,2.3496,125.41,125.35,41.88]
[1744782190837,10.3247,125.41,125.36,7.9773]
[1744782191030,0.05580206,125.39,125.37,0.05337838]
[1744782191431,8.03160206,125.39,125.37,0.05337838]
[1744782193638,0.05580206,125.39,125.37,0.05337838]
[1744782194140,0.05580206,125.39,125.37,8.02997838]
[1744782194841,0.05580206,125.39,125.38,7.9763]
[1744782195743,0.05580206,125.39,125.37,8.02997838]
[1744782197749,0.05580206,125.39,125.38,7.9763]
[1744782200144,2.4416,125.44,125.38,10.65335798]
[1744782200642,7.9733,125.43,125.38,10.65335798]
[1744782200845,7.9733,125.43,125.4,7.975]
[1744782201350,7.9728,125.44,125.4,7.975]
[1744782201549,0.0570467,125.43,125.4,8.03197943]
[1744782202145,0.0570467,125.43,125.41,7.9744]
[1744782205248,0.0570467,125.43,125.41,14.78924179]
[1744782207453,0.0570467,125.43,125.41,6.81484179]
[1744782208053,0.0570467,125.43,125.41,14.78924179]
[1744782208754,0.0570467,125.43,125.41,6.81484179]
[1744782209854,0.0570467,125.43,125.4,14.84652122]
[1744782212153,0.0570467,125.43,125.4,0.05697943]
[1744782212351,6.81484179,125.41,125.4,0.05697943]
[1744782212752,14.78924179,125.41,125.4,0.05697943]
[1744782215756,14.78884179,125.42,125.4,0.05697943]
[1744782215956,7.974,125.42,125.4,0.05697943]
[1744782216858,9.27348849,125.43,125.4,0.05697943]
[1744782217161,0.0570467,125.43,125.4,6.87182122]
[1744782218160,8.0305467,125.43,125.4,6.87182122]
[1744782218959,0.0570467,125.43,125.4,6.87182122]
[1744782220962,0.0570467,125.43,125.4,14.84672122]
[1744782221660,0.0570467,125.43,125.42,14.78864179]
[1744782221963,0.0570467,125.43,125.42,6.81484179]
[1744782222860,0.0570467,125.43,125.41,6.81484179]
[1744782225065,0.0570467,125.43,125.41,14.78924179]
[1744782225260,0.0570467,125.43,125.42,6.81484179]
[1744782225463,0.0570467,125.43,125.42,14.78864179]
[1744782226166,0.0570467,125.43,125.42,6.81484179]
[1744782226766,0.0570467,125.43,125.42,14.78864179]
[1744782227064,0.0570467,125.43,125.42,6.81484179]
[1744782227668,0.0570467,125.43,125.41,14.78894179]
[1744782227970,0.0570467,125.43,125.42,14.78864179]
[1744782228969,0.0570467,125.43,125.42,6.81484179]
[1744782229161,0.0570467,125.43,125.4,0.05697943]
[1744782229358,0.0570467,125.43,125.4,6.87182122]
[1744782229665,8.0305467,125.43,125.4,6.87182122]
[1744782230968,7.9743,125.42,125.4,6.87182122]
[1744782231171,0.0570467,125.43,125.4,6.87182122]
[1744782231469,0.0570467,125.43,125.42,6.81484179]
[1744782234578,0.0570467,125.43,125.41,14.78914179]
[1744782234870,0.0570467,125.43,125.4,0.05697943]
[1744782234871,0.0570467,125.43,125.4,8.03167943]
[1744782235070,0.0570467,125.43,125.41,6.81484179]
[1744782236273,8.0302467,125.43,125.41,6.81484179]
[1744782236571,6.81484179,125.42,125.4,0.05697943]
[1744782236765,6.81484179,125.41,125.33,408.2013]
[1744782236973,14.79094179,125.39,125.34,6.81484179]
[1744782237475,14.79094179,125.39,125.34,14.79344179]
[1744782237669,7.9764,125.38,125.34,14.79344179]
[1744782237867,7.9764,125.38,125.35,6.8709397]
[1744782238170,0.06076804,125.37,125.35,6.8709397]
[1744782239676,0.06076804,125.37,125.35,14.8489397]
[1744782239870,0.06076804,125.37,125.36,6.81484179]
[1744782241178,0.06076804,125.37,125.36,14.79244179]
[1744782248481,7.9753,125.4,125.37,7.9769]
[1744782249684,0.05135912,125.4,125.38,7.9761]
[1744782249885,0.05135912,125.4,125.38,14.79094179]
[1744782250081,0.05135912,125.4,125.38,7.9761]
[1744782250380,0.05135912,125.4,125.37,14.84424535]
[1744782250584,0.05135912,125.4,125.37,6.86754535]
[1744782252183,0.05135912,125.4,125.38,7.9763]
[1744782252380,0.05135912,125.4,125.37,0.05270356]
[1744782252579,8.02705912,125.4,125.37,0.05270356]
[1744782252783,14.84190091,125.4,125.37,0.05270356]
[1744782253284,7.9759,125.39,125.37,0.05270356]
[1744782253481,14.79074179,125.39,125.37,0.05270356]
[1744782255183,7.9763,125.38,125.37,0.05270356]
[1744782255387,14.79114179,125.38,125.37,0.05270356]
[1744782255890,7.9783,125.35,125.31,588.95544179]
[1744782256077,6.81484179,125.35,125.31,14.79544179]
[1744782256282,6.81484179,125.36,125.32,6.81484179]
[1744782256482,6.81484179,125.37,125.32,6.81484179]
[1744782256790,14.79224179,125.37,125.33,7.9791]
[1744782257084,0.052746,125.36,125.33,8.03407753]
[1744782257789,8.030346,125.36,125.33,8.03407753]
[1744782258192,0.052746,125.36,125.33,0.05497753]
[1744782258388,7.9786,125.35,125.33,0.05497753]
[1744782259088,8.030746,125.36,125.33,0.05497753]
[1744782259695,0.052746,125.36,125.33,6.86981932]
[1744782261195,0.052746,125.36,125.34,7.9786]
[1744782263395,0.052746,125.36,125.35,7.9783]
[1744782265693,0.052746,125.36,125.34,7.9786]
[1744782265894,0.052746,125.36,125.33,6.86981932]
[1744782266095,0.052746,125.36,125.34,6.81484179]
[1744782266296,0.052746,125.36,125.35,14.79314179]
[1744782267301,0.052746,125.36,125.34,14.79334179]
[1744782267800,0.052746,125.36,125.34,6.81484179]
[1744782268701,0.052746,125.36,125.35,7.9783]
[1744782269202,0.052746,125.36,125.33,6.86981932]
[1744782269703,14.79314179,125.35,125.33,0.05497753]
[1744782269997,6.81484179,125.35,125.33,0.05497753]
[1744782270198,14.84558779,125.36,125.33,0.05497753]
[1744782272599,7.9785,125.35,125.33,0.05497753]
[1744782273509,14.84558779,125.36,125.33,0.05497753]
[1744782273810,6.86758779,125.36,125.33,0.05497753]
[1744782274210,14.79354179,125.35,125.33,0.05497753]
[1744782274811,6.81484179,125.35,125.33,0.05497753]
[1744782275107,14.84558779,125.36,125.33,0.05497753]
[1744782278714,7.9784,125.35,125.33,0.05497753]
[1744782278909,14.79324179,125.35,125.33,0.05497753]
[1744782279108,6.81484179,125.35,125.33,0.05497753]
[1744782279610,14.84558779,125.36,125.33,0.05497753]
[1744782281109,7.9783,125.35,125.33,0.05497753]
[1744782283612,8.030546,125.36,125.33,0.05497753]
[1744782289519,6.81484179,125.34,125.23,377.9712]
[1744782289724,6.81484179,125.32,125.26,6.81484179]
[1744782290123,14.79544179,125.32,125.27,7.9831]
[1744782290324,6.81484179,125.32,125.27,7.9831]
[1744782290524,7.9813,125.31,125.27,7.9831]
[1744782290725,8.03510682,125.31,125.28,0.05228265]
[1744782290916,0.05380682,125.31,125.28,0.05228265]
[1744782291120,7.9821,125.29,125.28,0.05228265]
[1744782294626,7.9818,125.3,125.28,0.05228265]
[1744782295019,9.40824861,125.31,125.28,0.05228265]
[1744782295223,7.9814,125.3,125.28,0.05228265]
[1744782295424,9.40824861,125.31,125.28,0.05228265]
[1744782295926,7.9814,125.3,125.28,0.05228265]
[1744782298121,9.40824861,125.31,125.28,0.05228265]
[1744782298627,6.81484179,125.29,125.28,0.05228265]
[1744782298828,6.81484179,125.29,125.24,49.205]
[1744782299227,7.9831,125.28,125.24,49.205]
[1744782299929,0.05996182,125.27,125.25,0.0538887]
[1744782300126,14.85830361,125.27,125.25,0.0538887]
[1744782300324,6.81484179,125.26,125.25,0.0538887]
[1744782300527,14.79884179,125.26,125.25,0.0538887]
[1744782301531,7.984,125.26,125.25,0.0538887]
[1744782301830,14.79884179,125.26,125.25,0.0538887]
[1744782302127,8.04366182,125.27,125.25,0.0538887]
[1744782302332,14.85850361,125.27,125.25,0.0538887]
[1744782302732,8.04366182,125.27,125.25,0.0538887]
[1744782303131,14.85850361,125.27,125.25,0.0538887]
[1744782304730,6.87480361,125.27,125.25,0.0538887]
[1744782304933,0.05996182,125.27,125.25,0.0538887]
[1744782308630,8.04366182,125.27,125.25,0.0538887]
[1744782309433,0.05996182,125.27,125.25,0.0538887]
[1744782309624,0.05996182,125.27,125.25,6.86873049]
[1744782309930,0.05996182,125.27,125.25,0.0538887]
[1744782310936,8.04366182,125.27,125.25,0.0538887]
[1744782311129,0.05996182,125.27,125.25,0.0538887]
[1744782312530,7.984,125.26,125.25,0.0538887]
[1744782312737,14.79884179,125.26,125.25,0.0538887]
[1744782313432,7.986,125.23,125.18,369.5026]
[1744782313636,14.80084179,125.23,125.19,7.9879]
[1744782314732,0.06044109,125.22,125.2,0.0536527]
[1744782315130,8.04724109,125.22,125.2,0.0536527]
[1744782320432,0.06044109,125.22,125.2,0.0536527]
[1744782320630,0.06044109,125.22,125.2,6.86849449]
[1744782321238,7.9849,125.25,125.2,6.86849449]
[1744782321532,47.85484179,125.27,125.2,0.0536527]
[1744782321736,7.9843,125.26,125.23,7.9856]
[1744782322527,8.04079605,125.26,125.23,8.04191326]
[1744782323137,0.05649605,125.26,125.24,7.9851]
[1744782324734,0.05649605,125.26,125.24,7.9853]
[1744782324936,0.05649605,125.26,125.24,6.81484179]
[1744782325340,0.05649605,125.26,125.25,7.9846]
[1744782325542,0.05649605,125.26,125.25,14.79944179]
[1744782328840,13.99704179,125.31,125.25,6.81484179]
[1744782329139,6.81484179,125.3,125.25,6.81484179]
[1744782329343,14.79784179,125.28,125.24,7.9849]
[1744782330038,0.05674679,125.27,125.25,8.03960507]
[1744782330244,0.05674679,125.27,125.25,0.05510507]
[1744782332343,8.04034679,125.27,125.25,0.05510507]
[1744782339646,7.984,125.26,125.25,0.05510507]
[1744782341549,7.984,125.26,125.25,0.05510507]
[1744782342751,14.79884179,125.26,125.25,0.05510507]
[1744782342943,0.05674679,125.27,125.25,0.05510507]
[1744782343747,0.05674679,125.27,125.25,8.03970507]
[1744782344645,0.05674679,125.27,125.26,7.984]
[1744782345951,41.06,125.32,125.25,6.86994686]
[1744782346250,574.58,125.35,125.28,6.81484179]
[1744782346251,6.81484179,125.34,125.28,6.81484179]
[1744782346645,14.01434179,125.36,125.3,6.81484179]
[1744782346840,7.1995,125.36,125.3,6.81484179]
[1744782347041,7.1995,125.36,125.33,7.9795]
[1744782347246,0.05565448,125.34,125.33,7.9795]
[1744782347646,0.05565448,125.34,125.32,6.86632388]
[1744782348050,0.05565448,125.34,125.32,14.84622388]
[1744782349346,0.05565448,125.34,125.33,7.9795]
[1744782350352,0.05565448,125.34,125.33,14.79434179]
[1744782350944,47.67484179,125.38,125.34,7.9783]
[1744782351145,40.86,125.38,125.34,7.9783]
[1744782351347,40.86,125.38,125.34,6.81484179]
[1744782351547,17.20154179,125.39,125.35,7.9779]
[1744782352050,0.05572563,125.38,125.36,0.05729996]
[1744782352349,8.03212563,125.38,125.36,0.05729996]
[1744782352551,14.84696742,125.38,125.36,0.05729996]
[1744782353648,128.16748179,125.5,125.37,6.81484179]
[1744782353946,6.81484179,125.44,125.39,6.81484179]
[1744782354154,7.9735,125.43,125.39,6.81484179]
[1744782354652,7.9735,125.43,125.4,6.81484179]
[1744782354850,7.9735,125.43,125.4,0.05239914]
[1744782355253,11.70214179,125.45,125.4,14.84224093]
[1744782355753,11.70214179,125.45,125.4,6.86724093]
[1744782356353,4.8873,125.45,125.41,6.81484179]
[1744782357553,19.67444179,125.45,125.41,6.81484179]
[1744782357853,11.70214179,125.45,125.4,6.86724093]
[1744782358553,11.70214179,125.45,125.4,0.05239914]
[1744782358554,14.78774179,125.44,125.4,0.05239914]
[1744782358950,7.9729,125.44,125.4,0.05239914]
[1744782359150,14.78774179,125.44,125.4,8.02699914]
[1744782359454,7.9729,125.44,125.4,8.02699914]
[1744782359643,19.67414179,125.45,125.4,14.84184093]
[1744782359946,2.4931,125.45,125.41,6.81484179]
[1744782360253,14.78744179,125.44,125.4,0.05239914]
[1744782360753,6.81484179,125.41,125.4,0.05239914]
[1744782360952,6.81484179,125.41,125.35,48.838]
[1744782361152,14.79044179,125.4,125.35,47.67484179]
[1744782361353,6.81484179,125.4,125.35,47.67484179]
[1744782361548,6.81484179,125.41,125.37,7.9769]
[1744782361754,14.78924179,125.42,125.37,14.79174179]
[1744782362052,0.05239914,125.41,125.38,0.05503253]
[1744782362353,8.02719914,125.41,125.38,0.05503253]
[1744782362553,6.81484179,125.4,125.38,0.05503253]
[1744782362858,6.81484179,125.39,125.38,0.05503253]
[1744782363152,6.81484179,125.39,125.33,6.81484179]
[1744782363843,7.977,125.37,125.33,14.79394179]
[1744782364043,0.05337257,125.36,125.34,0.05520382]